bitfinex-derivatives/quotes_ETHF0:USTF0_20260125
["timestamp","ask_amount","ask_price","bid_price","bid_amount"]
[1769380820195,0.17902,2796.2,2794.8,1.63900343]
[1769380820389,0.17904,2795.9,2794.8,1.64187842]
[1769380820598,3.75304,2795.9,2794.8,1.64187842]
[1769380820793,0.17904,2795.9,2794.8,1.64187842]
[1769380820999,5.858,2795.8,2794.8,1.64187842]
[1769380821391,5.858,2795.8,2794.8,1.00138296]
[1769380821597,5.858,2795.8,2793.7,3.77250679]
[1769380821800,4.05279221,2795.7,2793.7,3.77250679]
[1769380822100,0.17912,2794.6,2793.2,3.78551577]
[1769380822304,0.17913,2794.4,2793.2,3.78551577]
[1769380822492,0.17914,2794.3,2793.2,3.78930093]
[1769380822702,2.096,2794.2,2793.2,3.78930093]
[1769380822903,0.17915,2794.1,2793.2,3.78930093]
[1769380823102,0.17915,2794.1,2793.2,0.01382865]
[1769380823296,0.17918,2793.6,2792.6,3.73996667]
[1769380823606,2.096,2794.2,2790.9,3.75137351]
[1769380824008,2.096,2794.2,2790.9,3.81370542]
[1769380824303,0.23045426,2794.1,2790.9,3.75137351]
[1769380824505,0.23045426,2793.9,2790.9,3.75411375]
[1769380824803,0.23045426,2793.3,2790.9,3.75411375]
[1769380825007,0.1793,2791.8,2789.9,3.70568595]
[1769380825203,5.673,2791.7,2789.9,3.70568595]
[1769380825505,0.17933,2791.3,2789.9,3.70568595]
[1769380826109,0.18237276,2791.3,2789.9,3.71017886]
[1769380826306,2.27734,2791.2,2789.9,3.71017886]
[1769380826809,0.00304276,2791.3,2789.9,3.71017886]
[1769380829303,0.17931,2791.7,2789.9,3.71017886]
[1769380830215,0.17933,2791.3,2789.9,3.71017886]
[1769380830508,0.17935,2791.0,2789.9,3.71017886]
[1769380831501,0.17932,2791.4,2789.9,3.71017886]
[1769380833617,0.17933,2791.3,2789.9,3.71017886]
[1769380840205,0.00440388,2791.7,2789.9,3.71017886]
[1769380841217,0.17929,2791.9,2789.9,3.71017886]
[1769380841617,0.17929,2791.9,2789.9,3.88959886]
[1769380841820,0.17929,2791.9,2789.9,3.9519606]
[1769380842116,0.56330482,2793.6,2790.4,3.69278608]
[1769380842422,0.17926,2792.4,2790.4,3.69278608]
[1769380842625,0.17926,2792.4,2790.6,3.69278608]
[1769380842820,0.17926,2792.4,2790.6,3.87215608]
[1769380843120,0.0041615,2793.6,2790.9,3.69278608]
[1769380843326,0.17922,2793.1,2791.2,3.69278608]
[1769380843719,0.0041615,2793.6,2791.7,3.87208608]
[1769380844023,0.17914,2794.4,2792.1,3.69278608]
[1769380844224,0.17914,2794.3,2792.1,3.87206608]
[1769380844722,0.29171113,2795.3,2792.6,3.69278608]
[1769380844921,0.17911,2794.7,2792.6,3.69684419]
[1769380846430,0.00327549,2795.3,2792.6,3.69684419]
[1769380846615,0.00327549,2795.3,2792.8,3.69278608]
[1769380847223,0.00327549,2795.3,2793.0,3.69278608]
[1769380847525,0.00327549,2795.3,2793.2,3.69278608]
[1769380847718,0.00327549,2795.3,2793.5,3.87197608]
[1769380848217,0.179,2796.4,2793.5,3.87197608]
[1769380848524,1.13208007,2796.7,2793.5,3.87197608]
[1769380848723,3.92927254,2796.6,2793.5,3.87197608]
[1769380848927,3.92927254,2796.5,2793.5,3.87197608]
[1769380849120,3.94047106,2796.4,2793.5,3.87197608]
[1769380849319,0.17904,2795.8,2793.5,3.69278608]
[1769380852326,0.17904,2795.8,2793.5,3.87197608]
[1769380853324,0.17904,2795.8,2793.7,3.69278608]
[1769380853529,0.179,2796.4,2793.7,3.87195608]
[1769380853730,3.93811193,2796.3,2793.7,3.87195608]
[1769380853926,0.179,2796.4,2793.7,3.87195608]
[1769380854127,0.179,2796.4,2793.0,3.583]
[1769380854128,0.179,2796.4,2794.0,3.69278608]
[1769380855622,0.179,2796.4,2794.0,3.87194608]
[1769380858327,0.179,2796.4,2794.2,3.69278608]
[1769380858722,0.17901,2796.3,2794.2,3.69278608]
[1769380859326,0.17902,2796.2,2794.2,3.69278608]
[1769380859526,0.17903,2796.1,2794.2,3.69278608]
[1769380860731,0.17903,2796.1,2794.2,3.87192608]
[1769380861027,0.17903,2796.1,2794.2,3.69278608]
[1769380861334,0.17903,2796.1,2794.4,3.69278608]
[1769380862530,0.17903,2796.1,2794.4,3.87191608]
[1769380863028,0.00413137,2796.5,2794.4,3.87191608]
[1769380863235,0.00413137,2796.5,2794.0,1.34662765]
[1769380863236,0.00413137,2796.5,2794.8,3.78261976]
[1769380863433,0.00413137,2796.5,2794.8,3.96479781]
[1769380863732,0.00413137,2796.5,2795.1,3.78261976]
[1769380864727,0.17901,2796.4,2795.1,3.78261976]
[1769380867435,0.00413137,2796.5,2794.8,0.00307805]
[1769380867436,0.17901,2796.3,2794.8,0.00307805]
[1769380870040,3.96042211,2796.2,2794.8,0.00307805]
[1769380870343,3.96042211,2796.1,2794.8,0.00307805]
[1769380870544,2.23237601,2796.3,2794.8,0.00307805]
[1769380870842,3.96124572,2796.2,2794.8,3.78569781]
[1769380871048,3.97046784,2796.1,2794.8,3.78569781]
[1769380871240,3.97046784,2796.0,2794.8,3.78569781]
[1769380871545,2.05336601,2796.2,2794.8,3.78569781]
[1769380871845,0.17901,2796.3,2794.8,3.78569781]
[1769380872040,3.98140964,2796.2,2794.8,3.78569781]
[1769380872233,0.17901,2796.3,2794.8,3.78569781]
[1769380872439,3.98179291,2796.2,2795.0,3.78261976]
[1769380872741,0.17901,2796.3,2795.0,3.78261976]
[1769380873245,3.99041471,2796.2,2795.0,3.78261976]
[1769380873441,0.17901,2796.3,2795.0,3.78261976]
[1769380874740,0.00413137,2796.5,2795.0,3.78261976]
[1769380875052,2.05336601,2796.8,2795.0,3.78261976]
[1769380875544,6.03425246,2796.9,2795.0,3.96170976]
[1769380875753,0.17892,2797.7,2795.9,1.62599964]
[1769380875944,4.03076625,2797.7,2795.7,0.17905]
[1769380876142,4.03375491,2797.7,2795.7,0.17905]
[1769380876842,4.03077625,2797.5,2795.4,1.62599964]
[1769380877045,3.85184625,2797.2,2795.0,0.17909]
[1769380877242,3.85184625,2796.6,2794.9,3.58]
[1769380877438,3.85184625,2796.3,2794.9,3.58]
[1769380877646,4.03085625,2796.3,2794.9,3.58]
[1769380877844,4.03086625,2796.1,2794.8,0.00307805]
[1769380878545,4.10673608,2796.6,2794.8,0.00307805]
[1769380878546,3.85184625,2795.9,2794.8,0.00307805]
[1769380879549,4.03087625,2795.9,2794.8,0.00307805]
[1769380881840,6.38117883,2796.6,2794.8,0.00307805]
[1769380881841,4.28572608,2796.6,2794.8,0.00307805]
[1769380882044,3.85184625,2796.5,2794.8,0.00307805]
[1769380882439,8.13758233,2796.5,2794.8,0.00307805]
[1769380882644,3.85184625,2796.4,2794.8,0.00307805]
[1769380882852,3.85184625,2796.3,2794.8,0.00307805]
[1769380883147,3.85184625,2795.8,2794.8,0.00307805]
[1769380883651,7.95858233,2795.8,2794.8,0.00307805]
[1769380883848,3.85184625,2795.7,2794.8,0.00307805]
[1769380884050,3.85566429,2795.7,2794.8,0.00307805]
[1769380887748,3.85184625,2795.5,2794.8,0.00307805]
[1769380887948,3.85184625,2795.3,2794.8,0.00307805]
[1769380888550,3.85184625,2795.3,2793.4,2.2840173]
[1769380889558,3.85184625,2795.3,2793.5,3.58307657]
[1769380891963,3.85184625,2795.3,2793.5,0.00407657]
[1769380893956,3.85184625,2795.3,2793.9,1.34189116]
[1769380894359,3.85184625,2795.3,2794.0,0.17915]
[1769380894559,0.00381804,2795.7,2794.1,0.17914]
[1769380895160,0.00381804,2795.7,2794.2,0.17914]
[1769380895365,0.00381804,2795.7,2793.9,1.34189116]
[1769380896059,0.00381804,2795.7,2794.4,1.52102116]
[1769380898055,0.00381804,2795.7,2794.6,0.17912]
[1769380898256,3.65246695,2796.3,2794.6,0.17912]
[1769380898863,3.65246695,2796.3,2794.7,3.824]
[1769380899057,3.65246695,2796.3,2794.9,1.34189116]
[1769380899258,3.65660194,2796.3,2795.0,3.824]
[1769380899562,0.00413499,2796.3,2795.1,1.34189116]
[1769380899864,3.65422556,2796.8,2795.3,0.17907]
[1769380900062,3.65629305,2797.7,2795.6,1.34189116]
[1769380900262,3.65629305,2797.5,2795.6,1.34189116]
[1769380900856,3.65904502,2797.5,2795.6,1.34648668]
[1769380901063,3.65904502,2797.5,2795.6,1.52553668]
[1769380903869,3.65904502,2797.5,2796.1,1.34189116]
[1769380905062,3.65904502,2797.5,2796.1,1.52091116]
[1769380905263,0.00275197,2797.5,2796.3,0.17901]
[1769380905466,3.64148132,2798.0,2796.6,1.52088116]
[1769380906270,3.64148132,2798.0,2796.8,0.17897]
[1769380906468,3.64419067,2798.0,2796.8,0.17897]
[1769380908471,0.00270935,2798.0,2797.1,1.34189116]
[1769380908665,3.65131118,2798.3,2797.1,1.34189116]
[1769380909577,3.65500075,2798.3,2797.1,1.34189116]
[1769380910269,0.17884,2799.0,2797.1,1.34189116]
[1769380910469,0.17879,2799.7,2797.2,3.73118421]
[1769380911378,0.18249398,2799.7,2797.2,3.73118421]
[1769380911672,0.17882,2799.2,2797.2,0.17895]
[1769380912270,3.63591769,2799.1,2797.2,0.17895]
[1769380916378,3.63591769,2799.1,2797.3,0.17894]
[1769380916574,3.63591769,2799.1,2797.6,1.34189116]
[1769380916781,3.63591769,2799.1,2797.6,1.34439956]
[1769380921185,3.63591769,2799.1,2797.6,0.0025084]
[1769380921482,3.63591769,2798.9,2797.6,0.0025084]
[1769380922073,0.00370398,2799.7,2796.6,1.34189116]
[1769380922074,3.63591769,2798.5,2796.6,1.34189116]
[1769380923082,3.63591769,2798.5,2796.6,1.34480528]
[1769380924578,3.63591769,2798.5,2797.1,1.34189116]
[1769380924779,4.10673608,2800.0,2797.1,1.34189116]
[1769380924780,3.69583598,2799.6,2797.3,0.17894]
[1769380924983,3.87463598,2799.6,2797.3,0.17894]
[1769380925277,3.87463598,2799.6,2797.6,1.34189116]
[1769380925682,3.87463598,2799.6,2797.5,0.17893]
[1769380928185,3.87463598,2799.6,2797.6,0.17892]
[1769380932288,3.69583598,2799.4,2797.6,0.17892]
[1769380934588,3.69583598,2799.4,2797.7,0.17892]
[1769380934982,3.69583598,2799.4,2797.8,0.17891]
[1769380935493,3.69583598,2799.4,2797.9,0.17891]
[1769380935990,3.69583598,2799.4,2798.1,0.17889]
[1769380936192,3.84571208,2799.6,2798.1,0.17889]
[1769380938289,3.84571208,2799.6,2798.2,2.097]
[1769380938498,3.84571208,2799.6,2798.3,3.824]
[1769380938996,3.84571208,2799.6,2798.3,4.00288]
[1769380939391,3.84571208,2799.6,2798.3,3.824]
[1769380942398,3.84571208,2799.6,2798.2,2.097]
[1769380948111,3.84571208,2799.6,2798.3,3.824]
[1769380954113,3.84571208,2799.6,2798.4,3.824]
[1769380954317,3.84571208,2799.6,2798.2,2.097]
[1769380954808,0.00370398,2799.7,2798.2,5.64013016]
[1769380955214,0.00370398,2799.7,2798.2,13.46910744]
[1769380956310,0.00370398,2799.7,2798.3,7.82897728]
[1769380956615,0.00370398,2799.7,2798.5,0.17887]
[1769380956810,3.62388375,2800.4,2798.7,0.17885]
[1769380957805,3.62703684,2800.4,2798.7,0.18239168]
[1769380959716,3.62703684,2800.4,2798.7,3.72552184]
[1769380960119,3.62703684,2800.4,2798.8,0.17884]
[1769380960912,3.62703684,2800.4,2798.9,0.17884]
[1769380961214,3.62703684,2800.4,2799.0,3.575]
[1769380961414,3.62703684,2800.4,2799.1,2.155]
[1769380961807,0.00315309,2800.4,2799.1,2.33382]
[1769380962013,0.00315309,2800.4,2799.1,5.87695016]
[1769380962215,0.00315309,2800.4,2799.2,0.17882]
[1769380964018,0.00315309,2800.4,2799.2,3.72195016]
[1769380965422,0.00315309,2800.4,2799.2,0.17882]
[1769380971634,0.00315309,2800.4,2799.3,3.824]
[1769380971837,0.00315309,2800.4,2799.4,3.824]
[1769380977443,0.00315309,2800.4,2799.5,3.824]
[1769380981545,0.29132635,2801.6,2799.6,3.54313016]
[1769380981546,3.62388375,2801.6,2799.6,3.54313016]
[1769380981745,3.62388375,2801.6,2799.7,0.17879]
[1769380981943,3.62388375,2801.6,2799.8,3.72191016]
[1769380982135,3.62388375,2801.6,2799.9,2.096]
[1769380982539,3.62669772,2801.6,2799.9,2.096]
[1769380983033,3.57457186,2801.3,2799.9,2.096]
[1769380983443,3.57457186,2801.1,2799.9,2.096]
[1769380984540,3.75327186,2801.1,2799.9,2.096]
[1769380985745,3.75327186,2801.1,2799.9,2.98729806]
[1769380987543,3.75327186,2801.1,2800.3,0.89129806]
[1769380988143,3.57457186,2801.1,2800.3,0.89129806]
[1769380988349,3.57457186,2801.1,2800.5,0.89129806]
[1769380991649,3.57457186,2801.5,2800.5,0.89129806]
[1769380994846,0.00281397,2801.6,2800.9,0.89129806]
[1769380995148,0.00281397,2801.6,2800.9,0.89583728]
[1769380997946,3.76111946,2801.6,2800.9,0.00453922]
[1769380998154,3.76111946,2801.6,2800.6,0.89129806]
[1769380998345,3.76111946,2801.6,2800.3,0.89129806]
[1769380998544,3.75830549,2801.4,2800.3,0.89129806]
[1769380999255,3.75830549,2801.4,2800.3,0.89394348]
[1769381002346,3.75830549,2801.4,2800.3,0.00264542]
[1769381002552,3.93698549,2801.4,2800.3,0.00264542]
[1769381003749,3.75830549,2801.2,2800.3,0.00264542]
[1769381004058,3.75830549,2801.0,2799.8,2.327]
[1769381004650,3.75830549,2801.0,2799.6,0.89129806]
[1769381004856,3.75830549,2801.0,2799.6,0.89466812]
[1769381006455,3.93701549,2801.0,2799.6,0.89466812]
[1769381006652,3.75830549,2800.6,2799.6,0.00337006]
[1769381006854,3.68613359,2800.9,2798.9,0.89129806]
[1769381006855,3.75830549,2800.2,2798.9,0.89129806]
[1769381007547,3.75830549,2800.2,2798.4,3.7290917]
[1769381007748,3.75830549,2800.2,2798.4,3.7320278]
[1769381008445,3.93706549,2800.2,2798.5,2.82]
[1769381008649,3.75830549,2800.0,2798.5,2.82]
[1769381008849,3.93707549,2800.0,2798.5,2.82]
[1769381009653,3.75830549,2800.5,2798.5,6.5490917]
[1769381009847,3.75830549,2800.5,2798.9,3.7290917]
[1769381010049,3.75830549,2800.9,2799.0,0.17883]
[1769381010260,3.75830549,2800.9,2799.1,3.7290917]
[1769381010654,3.75830549,2800.9,2799.3,1.33779619]
[1769381010856,3.75830549,2800.9,2799.4,2.096]
[1769381011258,3.75830549,2801.3,2799.4,5.8250917]
[1769381011461,3.75830549,2801.3,2799.5,3.7290917]
[1769381013053,3.75830549,2801.3,2799.6,2.52]
[1769381013468,3.70496932,2801.0,2799.3,1.33779619]
[1769381013659,3.70496932,2801.0,2799.1,2.096]
[1769381014155,0.17872,2800.9,2799.1,2.096]
[1769381014361,3.70496932,2800.8,2799.1,2.096]
[1769381015060,3.88368932,2800.8,2799.1,2.096]
[1769381015263,3.70496932,2800.6,2799.1,2.096]
[1769381015862,3.88371932,2800.4,2798.9,3.573]
[1769381018062,3.70496932,2800.2,2798.9,3.573]
[1769381018763,3.88372932,2800.2,2798.9,3.573]
[1769381019967,3.70496932,2800.0,2798.9,3.573]
[1769381020569,3.70496932,2800.6,2798.9,3.573]
[1769381021566,3.70496932,2801.0,2799.3,1.33779619]
[1769381021767,3.70496932,2801.0,2799.4,2.096]
[1769381022657,3.70496932,2800.8,2799.4,2.096]
[1769381022858,3.70496932,2800.8,2798.8,7.75260232]
[1769381022859,0.17873,2800.7,2798.8,1.33779619]
[1769381023072,3.70496932,2800.6,2798.9,6.281]
[1769381024370,3.70496932,2800.6,2798.8,1.33779619]
[1769381024565,3.70496932,2800.6,2799.0,2.82]
[1769381026880,0.17874,2800.5,2799.0,2.82]
[1769381027164,3.88371932,2800.4,2799.0,2.82]
[1769381027672,0.17877,2800.1,2799.0,2.82]
[1769381027974,3.70496932,2800.4,2799.0,2.82]
[1769381028965,0.17873,2800.7,2799.1,3.6097937]
[1769381030672,3.70496932,2801.3,2799.4,3.6097937]
[1769381030873,3.88365932,2801.3,2799.4,3.6097937]
[1769381031074,3.70496932,2801.3,2799.6,3.6097937]
[1769381031470,3.70496932,2801.3,2799.8,4.94758989]
[1769381031672,3.70496932,2801.3,2799.9,2.096]
[1769381032279,0.00281397,2801.6,2799.9,5.7057937]
[1769381032875,3.70778329,2801.6,2799.9,5.7057937]
[1769381033883,0.00281397,2801.6,2800.0,3.7885637]
[1769381034084,0.00281397,2801.6,2800.4,3.6097937]
[1769381034280,0.00281397,2801.6,2800.4,0.00304233]
[1769381034475,3.70778329,2801.6,2800.4,0.00304233]
[1769381039687,3.88645329,2801.6,2800.4,0.00304233]
[1769381045094,3.6835535,2801.4,2800.4,0.00304233]
[1769381047098,0.17868,2801.5,2800.4,0.00304233]
[1769381047693,0.17868,2801.5,2800.4,0.89382763]
[1769381048497,0.00281397,2801.6,2800.4,0.89382763]
[1769381048996,1.63900343,2801.8,2800.8,0.8907853]
[1769381049199,3.8621535,2802.7,2801.3,0.8907853]
[1769381049706,3.6835535,2802.7,2801.7,0.8907853]
[1769381049999,0.00404643,2802.7,2801.7,0.8907853]
[1769381050596,3.6835535,2803.3,2801.7,0.8907853]
[1769381051592,3.68777382,2803.3,2801.5,3.68607312]
[1769381056109,0.00422032,2803.3,2801.5,3.68607312]
[1769381056608,0.00422032,2803.3,2801.5,3.86475312]
[1769381058805,3.79654689,2803.3,2801.5,3.86475312]
[1769381059204,3.97089657,2803.2,2801.6,9.15844579]
[1769381059600,3.97089657,2803.2,2801.6,3.49244579]
[1769381059811,3.97089657,2803.2,2801.7,5.666]
[1769381060410,0.17857,2803.2,2801.7,9.15844579]
[1769381061207,3.97089657,2803.2,2801.7,9.15844579]
[1769381062014,3.97089657,2803.2,2801.7,5.666]
[1769381066107,3.97089657,2803.2,2801.7,9.15844579]
[1769381066314,0.00422032,2803.3,2801.8,3.49244579]
[1769381066518,3.79654689,2803.3,2801.8,3.49244579]
[1769381067314,3.79654689,2803.3,2801.9,2.712]
[1769381073113,0.00422032,2803.3,2801.9,2.712]
[1769381073318,0.00422032,2803.3,2801.9,6.44829348]
[1769381073514,0.00422032,2803.3,2802.4,0.88957328]
[1769381073717,0.00422032,2803.3,2802.4,0.89343944]
[1769381074212,3.85040158,2803.7,2802.4,0.89343944]
[1769381075217,3.85495166,2803.7,2802.4,0.89343944]
[1769381079317,3.67186158,2803.5,2802.4,0.89343944]
[1769381082424,3.85495166,2803.7,2802.4,0.89343944]
[1769381085125,3.67186158,2803.5,2802.4,0.89343944]
[1769381085828,0.18309008,2803.7,2802.4,0.89343944]
[1769381086029,3.69858097,2803.6,2802.4,0.89343944]
[1769381086324,0.18309008,2803.7,2802.4,0.89343944]
[1769381086526,3.69854584,2803.6,2802.4,0.89343944]
[1769381086726,0.18309008,2803.7,2802.4,0.89343944]
[1769381087121,0.18309008,2803.7,2802.8,0.88957328]
[1769381087928,3.85495166,2803.7,2802.8,0.88957328]
[1769381091627,2.10569826,2804.2,2802.8,0.88957328]
[1769381091822,7.3721178,2804.1,2802.8,0.88957328]
[1769381092027,3.70025622,2804.0,2802.8,0.88957328]
[1769381092228,7.3721178,2804.0,2802.8,0.88957328]
[1769381092534,0.17854,2803.7,2802.8,0.88957328]
[1769381092724,3.67186158,2804.0,2802.8,0.88957328]
[1769381092919,3.70038826,2803.9,2802.8,0.88957328]
[1769381093130,3.67186158,2803.9,2802.8,0.88957328]
[1769381093531,0.17854,2803.7,2802.8,0.88957328]
[1769381093731,0.00458245,2803.7,2802.8,0.88957328]
[1769381093930,3.67186158,2803.9,2802.8,0.88957328]
[1769381094535,0.17854,2803.7,2802.8,0.88957328]
[1769381094735,3.67186158,2803.9,2802.8,0.88957328]
[1769381094936,2.10569826,2804.3,2802.8,0.88957328]
[1769381095138,9.47843686,2804.3,2802.8,0.88957328]
[1769381095436,3.67186158,2804.1,2802.8,0.88957328]
[1769381095633,3.67186158,2803.6,2802.6,0.88957328]
[1769381095935,3.67451218,2803.6,2802.6,0.88957328]
[1769381096437,0.17854,2803.7,2802.6,0.88957328]
[1769381097434,0.18260749,2803.7,2802.6,0.88957328]
[1769381098537,0.18260749,2803.7,2802.6,4.62586676]
[1769381104549,4.19969826,2804.3,2802.6,4.62586676]
[1769381104849,3.70153918,2804.2,2802.6,4.62586676]
[1769381105048,3.70153918,2804.1,2802.6,4.62586676]
[1769381105339,3.70153918,2804.0,2802.6,4.62586676]
[1769381105545,0.17854,2803.7,2802.6,4.62586676]
[1769381105743,0.00429619,2804.0,2802.6,4.62586676]
[1769381106141,3.70323595,2803.9,2802.6,4.62586676]
[1769381106343,0.00429619,2804.0,2802.6,4.62586676]
[1769381106541,0.17854,2803.7,2802.6,4.62586676]
[1769381107543,0.17854,2803.7,2803.3,0.88500358]
[1769381107847,0.17854,2803.7,2803.2,0.88940723]
[1769381109942,0.17854,2803.7,2802.4,0.00386616]
[1769381110154,0.17854,2803.7,2803.0,0.88940723]
[1769381113448,1.04717381,2804.0,2802.4,0.00386616]
[1769381113651,3.14857588,2803.8,2802.4,0.00386616]
[1769381113852,5.80614992,2803.7,2802.4,0.00386616]
[1769381114158,3.70045166,2803.6,2802.6,0.88940723]
[1769381114358,2.10569826,2803.7,2802.6,0.88940723]
[1769381114359,3.70045166,2803.5,2802.6,0.88940723]
[1769381114559,0.17856,2803.3,2802.6,0.88940723]
[1769381115250,0.17856,2803.3,2802.4,0.00386616]
[1769381116759,0.17856,2803.3,2802.6,0.88940723]
[1769381117057,0.17756,2803.3,2802.6,0.88940723]
[1769381117462,0.17756,2803.3,2802.4,0.00386616]
[1769381118651,2.094,2803.2,2802.4,0.00386616]
[1769381119963,0.88940723,2802.8,2801.7,3.49338527]
[1769381120161,4.14099723,2802.9,2801.7,3.49338527]
[1769381120965,4.14099723,2802.9,2801.7,3.49622102]
[1769381125157,0.1786,2802.8,2801.7,0.00283575]
[1769381125561,0.1786,2802.7,2801.7,0.00283575]
[1769381127263,0.1786,2802.7,2801.7,3.49622102]
[1769381128253,0.17861,2802.6,2801.7,3.49622102]
[1769381128763,0.17861,2802.6,2800.5,3.49338527]
[1769381128764,0.88940723,2801.8,2800.5,3.49338527]
[1769381129163,3.076,2801.9,2800.5,3.49338527]
[1769381129962,0.00375242,2801.9,2801.0,0.88940723]
[1769381130264,0.00375242,2801.9,2801.1,3.49338527]
[1769381130466,0.00375242,2801.9,2801.4,3.49338527]
[1769381130662,11.20940723,2802.7,2801.4,3.49338527]
[1769381130663,10.32,2802.7,2801.6,0.88940723]
[1769381130859,6.8226,2802.8,2801.7,3.49338527]
[1769381131670,6.82573532,2802.8,2801.7,3.49338527]
[1769381132071,0.1786,2802.7,2801.7,3.49338527]
[1769381133672,1.06800723,2802.7,2801.7,3.49338527]
[1769381135664,0.88940723,2802.5,2801.7,3.49338527]
[1769381136069,3.25761,2802.6,2801.7,3.49338527]
[1769381142975,1.06801723,2802.5,2801.2,3.79438038]
[1769381143872,0.17862,2802.4,2801.2,3.79438038]
[1769381144377,0.17862,2802.4,2801.4,3.79438038]
[1769381147070,0.17863,2802.3,2801.4,3.79438038]
[1769381148373,0.17864,2802.2,2801.4,3.79438038]
[1769381148672,3.87504953,2802.1,2801.1,0.88940723]
[1769381148977,0.17864,2802.1,2801.1,4.68378761]
[1769381150671,0.17864,2802.1,2801.1,3.79438038]
[1769381152274,0.17864,2802.0,2801.1,3.79438038]
[1769381155078,1.06806723,2801.8,2801.1,3.79438038]
[1769381160182,0.17866,2801.7,2801.1,3.79438038]
[1769381160786,0.88940723,2801.8,2801.1,3.42733038]
[1769381160981,3.69606776,2801.7,2801.1,3.01583038]
[1769381161182,0.17868,2801.5,2801.1,2.17176038]
[1769381161886,0.17868,2801.5,2801.1,1.75831038]
[1769381162187,0.17868,2801.5,2801.1,1.35511038]
[1769381162486,0.17868,2801.5,2801.1,0.96768038]
[1769381162683,0.17868,2801.5,2800.5,0.00325772]
[1769381164687,0.17868,2801.5,2800.6,3.73802562]
[1769381175491,0.17868,2801.4,2800.6,3.73802562]
[1769381176897,0.1787,2801.2,2800.5,0.00325772]
[1769381177087,2.40461945,2801.7,2800.5,0.00325772]
[1769381177292,0.17872,2800.8,2800.5,0.00325772]
[1769381177498,0.17873,2800.7,2800.2,3.66091027]
[1769381177897,0.17873,2800.7,2799.6,3.572]
[1769381178198,0.17873,2800.7,2799.7,3.66091027]
[1769381178397,0.17873,2800.7,2799.7,3.66410862]
[1769381181904,0.17875,2800.5,2799.7,3.66410862]
[1769381183297,0.00463484,2800.8,2799.7,3.66410862]
[1769381183502,0.17874,2800.5,2799.7,3.66410862]
[1769381183702,0.00463484,2800.8,2799.7,3.66410862]
[1769381184502,0.17874,2800.5,2799.7,3.66410862]
[1769381187302,0.00463484,2800.8,2799.7,3.66410862]
[1769381187707,0.17874,2800.5,2799.7,3.66410862]
[1769381188603,0.00463484,2800.8,2799.7,3.66410862]
[1769381189207,0.1787,2801.1,2799.7,3.66410862]
[1769381190302,0.18152298,2801.1,2799.7,3.66410862]
[1769381191406,0.18152298,2801.1,2799.9,3.66091027]
[1769381191606,2.40461945,2801.7,2799.9,3.66091027]
[1769381191811,0.17869,2801.4,2799.9,3.66091027]
[1769381192700,0.18327216,2801.4,2799.9,3.66091027]
[1769381193110,0.28271282,2801.9,2799.9,3.66091027]
[1769381193309,3.70362394,2801.8,2799.9,3.66091027]
[1769381193511,3.70362394,2801.7,2799.9,3.66091027]
[1769381193710,0.17869,2801.4,2799.9,3.66091027]
[1769381194206,0.1822827,2801.4,2799.9,3.66091027]
[1769381201130,0.1822827,2801.4,2800.3,3.49206199]
[1769381202525,4.20779556,2802.0,2800.3,3.49206199]
[1769381202721,2.096,2802.0,2800.3,3.49206199]
[1769381203635,2.27917258,2802.0,2800.3,3.49206199]
[1769381204431,0.17866,2801.8,2800.3,3.49206199]
[1769381208834,0.17873,2800.8,2799.7,0.00319835]
[1769381212138,0.17873,2800.6,2799.7,0.00319835]
[1769381212332,0.17875,2800.4,2799.3,3.49206199]
[1769381212533,0.17876,2800.3,2799.3,3.49206199]
[1769381213136,0.17876,2800.2,2799.3,3.49206199]
[1769381213335,3.60290194,2800.7,2798.6,3.49206199]
[1769381213336,0.17877,2800.1,2798.6,3.49206199]
[1769381213535,3.60290194,2800.4,2798.9,3.49206199]
[1769381214136,7.32239743,2800.3,2798.9,3.49206199]
[1769381214339,3.60290194,2800.3,2798.9,3.49206199]
[1769381214537,0.17878,2799.9,2798.9,3.49206199]
[1769381214734,0.18174942,2799.9,2798.9,3.49206199]
[1769381215342,0.17879,2799.7,2798.8,0.00411142]
[1769381216245,0.1788,2799.6,2798.8,0.00411142]
[1769381216742,0.17881,2799.4,2798.8,0.00411142]
[1769381219349,0.17882,2799.3,2798.8,1.42e-06]
[1769381221156,2.096,2799.7,2798.8,1.42e-06]
[1769381221157,0.17882,2799.2,2798.8,1.42e-06]
[1769381221651,0.17883,2799.1,2798.8,1.42e-06]
[1769381222751,0.17883,2799.1,2798.0,3.49206199]
[1769381223654,0.17883,2799.1,2798.0,3.49589374]
[1769381225057,0.00296942,2799.9,2798.0,4.38700807]
[1769381225353,0.00296942,2799.9,2798.1,3.73194287]
[1769381225956,0.00296942,2799.9,2798.5,3.73194287]
[1769381226458,0.17877,2800.0,2798.5,3.73194287]
[1769381226951,2.097,2800.7,2798.5,3.73194287]
[1769381227151,0.17875,2800.5,2798.5,3.73194287]
[1769381227356,0.18328731,2800.5,2798.5,3.73194287]
[1769381227551,0.17875,2800.4,2798.5,3.73194287]
[1769381228252,0.17875,2800.4,2798.9,3.73194287]
[1769381228558,3.575,2801.4,2799.3,3.73194287]
[1769381228749,0.17871,2801.0,2799.5,3.73194287]
[1769381229458,0.1819106,2801.0,2799.5,3.73194287]
[1769381229660,0.1819106,2801.0,2800.0,3.73194287]
[1769381229854,0.1819106,2801.0,2800.0,3.73568631]
[1769381232259,0.0032006,2801.0,2800.0,3.73568631]
[1769381234457,0.89136826,2801.5,2800.2,3.73194287]
[1769381235457,0.89436119,2801.5,2800.2,3.73194287]
[1769381239161,0.00299293,2801.5,2800.3,0.89136826]
[1769381239353,0.00299293,2801.5,2800.4,3.53802002]
[1769381243962,0.18167293,2801.5,2800.4,3.53802002]
[1769381244970,0.17868,2801.4,2800.4,3.53802002]
[1769381246060,0.17869,2801.3,2800.4,3.53802002]
[1769381257285,0.17869,2801.3,2800.1,3.824]
[1769381257286,0.17872,2800.8,2800.1,3.824]
[1769381257573,0.89136826,2801.0,2800.1,3.824]
[1769381258372,3.74977873,2800.9,2800.1,3.824]
[1769381258582,0.17873,2800.7,2800.1,3.824]
[1769381261883,0.17873,2800.7,2800.0,0.00374344]
[1769381263988,0.17873,2800.7,2800.0,3.81796343]
[1769381264285,2.10820939,2801.3,2800.0,4.70933169]
[1769381264590,0.1787,2801.1,2800.0,4.70933169]
[1769381265983,0.1787,2801.1,2800.2,0.89136826]
[1769381266186,2.11120232,2801.5,2800.3,3.81421999]
[1769381266490,3.75745013,2801.4,2800.3,3.81421999]
[1769381267282,0.1787,2801.1,2800.3,3.81421999]
[1769381267489,0.00299293,2801.5,2800.5,3.81421999]
[1769381268491,0.1787,2801.1,2800.5,3.81421999]